Cogmind - Beta 15 @@@ ROGUE MODE // 2025.06.17 @ 05:16:10 Player: Peregrine Result: Destroyed by Y-45 Defender with Heavy Assault Rifle Performance ------------- Evolutions (0) 0 Regions Visited (3) 600 Robots Destroyed (20) 100 Value Destroyed (605) 605 Prototype IDs (1) 20 Alien Tech Used (0) 0 Bonus (0) 0 TOTAL SCORE: 1325 Bonus ------- None Cogmind --------- Core Integrity 0/250 Matter 274/300 Energy 179/180 System Corruption 0% Temperature Cool (9) Movement Rolling (115) Ox1 Location -9/Recycling Parts ------- > --- POWER (1) -------- Meta Core > --- PROPULSION (2) --- Compact Wheel > --- UTILITY (2+1) ---- Large Storage Unit (+) Makeshift System Shield > --- WEAPON (2) ------- Heavy Assault Rifle > --- INVENTORY (15) --- Light Ion Engine Aluminum Leg Subdweller Monowheel Improved Heat Sink Beam Rifle Rocket Launcher Hammer Hammer Peak State ------------ > --- POWER ------------ Meta Core > --- PROPULSION ------- Compact Wheel Compact Wheel > --- UTILITY ---------- Improved Heat Sink Large Storage Unit Makeshift System Shield > --- WEAPON ----------- Subdweller Laser Heavy Assault Rifle Battle Rifle > --- INVENTORY -------- Light Ion Engine Aluminum Leg Subdweller Monowheel Hammer Hammer [Rating: 29] Favorites ----------- Power Meta Core Engine Ion Engine Power Core Meta Core Propulsion Aluminum Leg Leg Aluminum Leg Wheel Compact Wheel Utility Makeshift System Shield Device ECM Suite Storage Small Storage Unit Hackware Makeshift System Shield Protection Medium Armor Plating Weapon Assault Rifle Energy Gun Subdweller Laser Energy Cannon Beam Cannon Ballistic Gun Assault Rifle Impact Weapon Hammer Build | -11 -10 -10 -9 ------- Run | Yrd Mat Sub Rec Slots Evolved . | . . . . Power . | . . . . Propulsion . | . . . . Utility . | . . . . Weapon . | . . . . Parts Attached 21 | . 4 13 4 Power 1 | . . 1 . Engine . | . . . . Core 1 | . . 1 . Reactor . | . . . . Propulsion 4 | . 1 3 . Treads . | . . . . Leg 1 | . 1 . . Wheel 3 | . . 3 . Hover . | . . . . Flight . | . . . . Utility 6 | . 1 4 1 Device 3 | . 1 2 . Storage 1 | . . 1 . Processor . | . . . . Hackware 1 | . . 1 . Protection 1 | . . . 1 Artifact . | . . . . Weapon 10 | . 2 5 3 Energy Gun 3 | . 1 1 1 Energy Cannon 1 | . . 1 . Ballistic Gun 4 | . 1 2 1 Ballistic Cannon . | . . . . Launcher . | . . . . Special Weapon . | . . . . Impact Weapon 2 | . . 1 1 Slashing Weapon . | . . . . Piercing Weapon . | . . . . Special Melee Weapon . | . . . . Unidentified Prototypes 1 | . . 1 . Parts Lost 7 | . . 5 2 Power 1 | . . 1 . Propulsion 2 | . . 1 1 Utility 1 | . . . 1 Weapon 3 | . . 3 . Highest Loss Streak 2 | . . 2 2 To Critical Strikes . | . . . . Average Backups 7 | 6 6 7 6 Power 1 | 1 1 1 1 Propulsion 2 | 4 3 2 2 Utility . | . . . . Weapon 2 | 1 2 2 3 Tool/Special . | . . . . Unused Backups 13 | . 7 2 4 Power 3 | . 1 1 1 Propulsion 5 | . 4 . 1 Utility 1 | . 1 . . Weapon 4 | . 1 1 2 Tool/Special . | . . . . Average Slot Usage (%) 91 | . 99 87 97 Engine 6 | . 14 4 . Core 5 | . . 6 11 Leg 15 | . 28 11 . Wheel 8 | . . 10 24 Device 7 | . 13 5 4 Storage 12 | . 14 11 11 Hackware 7 | . . 9 11 Energy Gun 2 | . 1 2 3 Energy Cannon 4 | . . 7 . Ballistic Gun 17 | . 26 14 18 Impact Weapon 1 | . . 1 2 Peak Build Rating 29 | 6 8 29 27 Average Rating 16 | 6 7 19 26 On Entrance 11 | 6 6 7 27 Naked Turns . | . . . . Heaviest Build 39 | 13 16 37 39 Greatest Support 52 | 20 20 52 32 Greatest Overweight (x) 1 | . . 1 1 Average Overweight (x) . | . . . . Largest Inventory Capacity 15 | 8 8 15 15 Average Capacity 10 | 8 8 11 15 Most Carried 8 | 6 8 8 8 Average Carried 7 | 6 6 7 7 Final Capacity 15 | 8 8 15 15 Final Carried 8 | 6 7 5 8 Class Distribution -------------------- 86% | Mutant 12% | Gunner Dominant Class ---------------- Mutant | -10/Materials Mutant | -10/Subcaves Mutant | -9/Recycling Resources | -11 -10 -10 -9 ----------- Run | Yrd Mat Sub Rec Matter Collected 682 | 200 111 311 60 Remotely . | . . . . Salvage Created 680 | . 188 432 60 Parts 49 | . 17 27 5 Haulers Intercepted . | . . . . Recyclers Shooed . | . . . . Parts Field Recycled . | . . . . Retrieved Matter . | . . . . Parts Self-Destructed 14 | . . 14 . Prevented . | . . . . Kills | -11 -10 -10 -9 ------- Run | Yrd Mat Sub Rec Combat Hostiles Destroyed 18 | . 8 9 1 Guns 13 | . 8 4 1 Cannons 5 | . . 5 . Classes Destroyed 5 | . 2 3 . Turret 2 | . . 2 . Swarmer 6 | . 6 . . Grunt 3 | . 2 1 . Sentry 2 | . . 1 1 Subdweller 7 | . . 7 . Best Kill Streak 3 | . 3 2 1 Combat Bots Only 3 | . 3 2 1 Max Kills in Single Turn 1 | . 1 1 1 Gunslinging . | . . . . Exploded . | . . . . Melee . | . . . . Uniques/NPCs Destroyed . | . . . . Combat | -11 -10 -10 -9 -------- Run | Yrd Mat Sub Rec Hostile Shots Fired 125 | . 36 76 13 Missed 46 | . 14 32 . Hits 79 | . 22 44 13 Melee 3 | . . . 3 Projectile 76 | . 22 44 10 Critical Strikes 2 | . . . 2 Damage Taken 1119 | . 202 665 252 Core 263 | . 39 191 33 Absorbed by Shields . | . . . . Core Remaining (%) 100 | 100 . . . Volleys Fired 81 | . 30 43 8 Largest 3 | . 2 3 2 Hottest 145 | . 60 145 79 Shots Fired 167 | . 60 91 16 Gun 132 | . 60 56 16 Cannon 35 | . . 35 . Launcher . | . . . . Special . | . . . . Kinetic 105 | . 44 49 12 Thermal 46 | . . 42 4 Explosive . | . . . . Electromagnetic 16 | . 16 . . Robot Hit Streak 19 | . 9 19 5 Robot Miss Streak 6 | . 6 2 1 Penetration Max . | . . . . Secondary Targets . | . . . . Shots Hit Robots 92 | . 25 56 11 Core Hits 35 | . 14 18 3 Critical Kills . | . . . . Critical Parts Destroyed . | . . . . Critical Strikes . | . . . . Melee Attacks 14 | . . 14 . Impact 14 | . . 14 . Slashing . | . . . . Piercing . | . . . . Sneak Attacks . | . . . . Combat Hostiles . | . . . . Follow-up Attacks . | . . . . Damage Inflicted 1256 | . 329 735 192 Guns 902 | . 327 383 192 Cannons 352 | . . 352 . Explosions . | . . . . Melee . | . . . . Ramming 2 | . 2 . . Kinetic 718 | . 233 322 163 Thermal 442 | . . 413 29 Explosive . | . . . . Electromagnetic 94 | . 94 . . Impact . | . . . . Slashing . | . . . . Piercing . | . . . . Highest Corruption . | . . . . Average Corruption . | . . . . Corruption Purged . | . . . . Corruption Blocked . | . . . . Overload Shots . | . . . . Overflow Damage . | . . . . Projectiles . | . . . . Explosions . | . . . . Melee . | . . . . Knockbacks . | . . . . Impact . | . . . . Kinetic . | . . . . Secondary . | . . . . Self-Inflicted Damage . | . . . . Shots . | . . . . Rammed . | . . . . Targets Rammed 2 | . 2 . . Kicked 2 | . 2 . . Crushed . | . . . . Highest Temperature 40 | . 27 40 1 Average Temperature 16 | . 21 15 1 Received Heat Transfer 192 | . 36 111 45 Siege Activations . | . . . . Martial Activations . | . . . . Shielding Activations . | . . . . Robots Disrupted . | . . . . Combat Hostiles . | . . . . Robots Corrupted . | . . . . Combat Hostiles . | . . . . Parts Fried . | . . . . Impact Corruptions . | . . . . Robots Melted . | . . . . Combat Hostiles . | . . . . Parts Melted 1 | . . 1 . Heat Transferred 889 | . . 815 74 Parts Sabotaged . | . . . . Parts Stolen . | . . . . Parts Stripped . | . . . . Power Chain Reactions . | . . . . Alert | -11 -10 -10 -9 ------- Run | Yrd Mat Sub Rec Maximum Alert Level . | . . . . Low Security (%) 100 | 100 100 . 100 Level 1 . | . . . . Level 2 . | . . . . Level 3 . | . . . . Level 4 . | . . . . Level 5 . | . . . . High Security . | . . . . Max Security . | . . . . Peak Influence 70 | . 70 . 22 Initial 22 | . . . 22 Average 16 | . 19 . 6 Influence Increases 330 | . 195 110 25 Destroy 0b10 Robot/C 260 | . 160 80 20 Destroy Leader 30 | . 30 . . Successful Hack 10 | . 5 . 5 Lose Combat Pursuer 30 | . . 30 . Influence Decreases 330 | . 195 63 72 Entered New Map 25 | . . . 25 Time Decay 285 | . 195 43 47 Lost Part 20 | . . 20 . Squads Dispatched 1 | . 1 . . Investigation . | . . . . Extermination . | . . . . Reinforcement 1 | . 1 . . Assault . | . . . . Garrison . | . . . . Intercept . | . . . . Searches Triggered . | . . . . Construction Impeded . | . . . . Haulers Reinforced . | . . . . Active Scanning Responses . | . . . . Cargo Convoy Interrupts . | . . . . Stealth | -11 -10 -10 -9 --------- Run | Yrd Mat Sub Rec Distress Signals . | . . . . Communications Jammed . | . . . . Distress Signals . | . . . . Times Spotted 46 | . 27 15 4 Peak Tracking Total 4 | . 4 3 2 Tactical Retreats 7 | . 4 3 . Traps | -11 -10 -10 -9 ------- Run | Yrd Mat Sub Rec Traps Triggered . | . . . . Indirectly . | . . . . Trap Hack Attempts . | . . . . Triggered . | . . . . Disarmed . | . . . . Reprogrammed . | . . . . Reused . | . . . . Traps Extracted . | . . . . Installed . | . . . . Triggered . | . . . . Machines | -11 -10 -10 -9 ---------- Run | Yrd Mat Sub Rec Machines Disabled 2 | . . 2 . Max in Single Turn 1 | . . 1 . Machines Repaired . | . . . . Machines Dismantled . | . . . . Machines Sabotaged . | . . . . Overloaded Fab Kills . | . . . . Hacking | -11 -10 -10 -9 --------- Run | Yrd Mat Sub Rec Machines Accessed 8 | . 3 . 5 Terminals 4 | . 2 . 2 Fabricators . | . . . . Repair Stations 1 | . 1 . . Recycling Units 3 | . . . 3 Scanalyzers . | . . . . Garrison Access . | . . . . Total Hacks 23 | . 7 . 16 Successful 11 | . 3 . 8 Failed 12 | . 4 . 8 Catastrophic 2 | . 1 . 1 Database Lockouts . | . . . . Manual 18 | . 6 . 12 Terminals 18 | . 6 . 12 Fabricators . | . . . . Repair Stations 1 | . 1 . . Recycling Units 4 | . . . 4 Scanalyzers . | . . . . Garrison Access . | . . . . Terminal Hacks 5 | . 1 . 4 Terminal Index 3 | . 1 . 2 Zone Layout 2 | . . . 2 Fabricator Hacks . | . . . . Repair Station Hacks . | . . . . Recycling Unit Hacks 4 | . . . 4 Report Inventory 1 | . . . 1 Retrieve Components 3 | . . . 3 Scanalyzer . | . . . . Garrison Access Hacks . | . . . . Unauthorized Hacks 2 | . 2 . . Terminals 2 | . 2 . . Botnet 2 | . 2 . . Fabricators . | . . . . Repair Stations . | . . . . Recycling Units . | . . . . Scanalyzers . | . . . . Garrison Access . | . . . . Data Cores Recovered . | . . . . Used . | . . . . Hacking Detections 5 | . 3 . 2 Full Trace Events . | . . . . Feedback Events . | . . . . Feedback Blocked . | . . . . Robot Schematics Acquired . | . . . . Robots Built . | . . . . Authchips . | . . . . Time . | . . . . Total Robot Build Rating . | . . . . Part Schematics Acquired . | . . . . Parts Built . | . . . . Authchips . | . . . . Time . | . . . . Total Part Build Rating . | . . . . Parts Repaired . | . . . . Time . | . . . . Parts Recycled . | . . . . Recycled Matter . | . . . . Retrieved Matter . | . . . . Retrieved Components 7 | . . . 7 Parts Scanalyzed . | . . . . Part Schematics Acquired . | . . . . Parts Damaged . | . . . . Bothacking | -11 -10 -10 -9 ------------ Run | Yrd Mat Sub Rec Used RIF Installer . | . . . . Robots Hacked . | . . . . Non-combat . | . . . . Combat . | . . . . Robot Hacks Applied . | . . . . Relay Couplers Released . | . . . . Fabnet Peak Effective % . | . . . . Robots Rewired . | . . . . Allies Hacked . | . . . . Hacks Repelled . | . . . . Allies | -11 -10 -10 -9 -------- Run | Yrd Mat Sub Rec Total Allies . | . . . . Largest Group . | . . . . Highest-Rated Group . | . . . . Highest-Rated Ally . | . . . . Total Orders . | . . . . Ally Attacks . | . . . . Total Damage . | . . . . Kills . | . . . . Allies Corrupted . | . . . . Allies Melted . | . . . . Intel | -11 -10 -10 -9 ------- Run | Yrd Mat Sub Rec Active Infowar (turns) 1444 | . 666 778 . Optics 478 | . . 478 . ECM 966 | . 666 300 . Robot Analysis Total . | . . . . Derelict Logs Recovered 1 | . . 1 . Drone Launches . | . . . . Drone Recoveries . | . . . . Exploration | -11 -10 -10 -9 ------------- Run | Yrd Mat Sub Rec Turns Passed 2745 | 4 697 1839 205 Spaces Moved 1663 | 4 248 1271 140 Core . | . . . . Treads . | . . . . Legs 833 | 4 248 581 . Wheels 830 | . . 690 140 Hover . | . . . . Flight . | . . . . Fastest Speed 100 | 120 120 103 100 Average Speed 122 | 120 120 124 113 Slowest Speed 190 | 120 120 190 115 Overloaded Moves . | . . . . Propulsion Burnouts . | . . . . Robots Hopped . | . . . . Potential Cave-ins . | . . . . Cave-ins Triggered . | . . . . Exploration Rate (%) 36 | 2 50 70 25 Regions Visited 3 Branch Regions 2 Pre-discovered Areas . | . . . . Known Exits Taken . | . . . . Unknown Exits Taken 3 | 1 1 1 . Scrap Searched 1 | . . 1 . Spaces Dug 2 | . . 2 . Terrain Destroyed 2 | . . 2 . Melee 2 | . . 2 . Projectile . | . . . . AOE . | . . . . Terrain Rammed . | . . . . Walls Destroyed . | . . . . Machines Disabled . | . . . . Actions | -11 -10 -10 -9 --------- Run | Yrd Mat Sub Rec Total 2187 | 3 590 1421 173 Wait 371 | . 297 65 9 Move 1660 | 3 247 1270 140 Hop . | . . . . Pick Up 19 | . 6 8 5 Fast Attach 1 | . . 1 . Attach 15 | . 1 9 5 Detach 3 | . . . 3 Swap 10 | . 3 6 1 Drop 11 | . 4 5 2 Fire 81 | . 30 43 8 Melee 14 | . . 14 . Ram . | . . . . Kick 2 | . 2 . . Crush . | . . . . Escape Stasis . | . . . . Rewire . | . . . . Trap . | . . . . Miscellaneous . | . . . . Route ------- -11/Scrapyard -10/Materials (discovered 2 exits: [*Min] / *Sub) -10/Subcaves (discovered 2 exits: [*Mat] / *Rec) -9/Recycling History --------- Turn | Location | Event 1 | -11/Scrapyard | Discovered new exit (range 2) 5 | -11/Scrapyard | Entered Materials 268 | -10/Materials | Discovered new exit (range 14) 300 | -10/Materials | Build established: Mutant 664 | -10/Materials | Discovered new exit (range 9) 702 | -10/Materials | Entered Subcaves 984 | -10/Subcaves | Discovered new exit (range 8) 1019 | -10/Subcaves | A swath of the cavern ceiling suddenly collapsed 1261 | -10/Subcaves | Visited 4L-MR0's lab 1301 | -10/Subcaves | Core integrity fell below 50% 1391 | -10/Subcaves | Found Prototype Power Core 1392 | -10/Subcaves | Identified Meta Core 1393 | -10/Subcaves | Attached Meta Core, gained temporary slots: Propulsion, Utility, Weapon 1986 | -10/Subcaves | Shifting Twisted Machinery released Scrap Shield 2470 | -10/Subcaves | Build established: Gunner 2509 | -10/Subcaves | Discovered new exit (range 10) 2512 | -10/Subcaves | Core integrity fell below 20% 2541 | -10/Subcaves | Entered Recycling 2746 | -9/Recycling | Destroyed by Y-45 Defender with Heavy Assault Rifle Last Messages --------------- 02622_ Acquired Beam Rifle. 02632_ R-06 Scavenger collects Lgt. Armor Plating. 02636_ R-06 Scavenger collects Beam Rifle. 02639_ R-06 Scavenger collects Lgt. Treads. 02643_ R-06 Scavenger collects Heat Sink. 02652_ R-06 Scavenger inserts Beam Rifle into recycling unit. 02655_ R-06 Scavenger inserts Lgt. Treads into recycling unit. 02658_ R-06 Scavenger inserts Heat Sink into recycling unit. 02707_ Connecting with Terminal... >>Layout(Zone) Retrieving Zone 4L layout... Downloaded map data. >>Index(Terminals) Found 6 terminals. Downloaded coordinate data. 02732_ Y-45 Defender springs to life. 02733_ L-31 Rogue springs to life. 02741_ Com. Wheel destroyed. 02741_ Med. Armor Plating destroyed. 02744_ Hvy. Assault Rifle severed. Map ----- +----------------------------------------------------+ | # # #????# ???????????????????? | | # # #????# ???????????????????? | | # # #????# ???????????????????? | | # # #????# ???????????????????? | | # # #????# ???????????????????? | | ## ##############????# ???????????????????? | | ?# #?????????#####???# ???????????????????? | | ## ##????????#!!!#?### ???????????????????? | | # ##########!!!### ####+##???????????????????? | | # ???????????????????? | | # ???????????????????? | | # ???????????????????? | | # ####+###### ###???????????????????? | | ## #### # #?#???????????????????? | | ?# ##"" T # #?#???????????????????? | | ?# ##"Y # ##### #?????????????????????? | | ?# ##"" # #???# #?????????????????????? | | ?# #### """ + ###?# #?????????????????????? | | ?# #??# """ # ###+######????????????????? | | ?# #??# """ # r #tl ]t g #????????????????? | | ?# #??# """ # # k % #????????????????? | | ?# #??# """ # # Y Y #????????????????? | | ?# ##?# # # !! #????????????????? | | ?# #?# # Y l b #????????????????? | | ?# ##?######### #[ !!!h g#????????????????? | | ## #?????????# # @r #????????????????? | | "" #?????????## # h #????????????????? | | "Y #??????????# #* ui#????????????????? | | "" #?##########+## ######+###????????????????? | | ## #?# # #????# #??????????????????? | | ## #?????????????# #?????????????????????????? | | ## #?????????????# ?????????????????????????? | | ## ##????????????# ?????????????????????????? | | # #????????????# ??????????????????????????? | | #????????????# ??????????????????????????? | | T #????????????# ??????????????????????????? | | #????????????+ ??????????????????????????? | | # #????????????? ??????????????????????????? | | #######??????????????????????????????????????????? | | ?????????????????????????????????????????????????? | | ?????????????????????????????????????????????????? | | #????????????????????????????????????????????????? | | #????????????????????????????????????????????????? | | #????????????????????????????????????????????????? | | #????????????????????????????????????????????????? | | #????????????????????????????????????????????????? | | ?????????????????????????????????????????????????? | | ?????????????????????????????????????????????????? | | ?????????????????????????????????????????????????? | | ?????????????????????????????????????????????????? | +----------------------------------------------------+ Best States ------------- Heat Dissipation 39 Energy Generation 17 Energy Capacity 250 Matter Stores 300 Matter Capacity 300 Sight Range 21 Terrain Scan Density 10 ECM Strength 1 Armor Coverage 225 Evasion (%) 55 Defensive Hacking 11 Item Schematics ----------------- None Robot Schematics ------------------ None Fabricated ------------ Nothing Repaired ---------- Nothing Alien Tech Used ----------------- None Achievements -------------- None Challenges ------------ None Game ------ Seed MyomerSupersonicPlating Manual? 0 Play Time 00:21:49 Cumulative 108.7 hours Start 2025.06.17 @ 04:51:34 End 2025.06.17 @ 05:16:10 Sessions 1 Manual Loads 0 Difficulty Rogue Special Mode None Game No. 136 Rogue 121 Adventurer 15 Explorer 0 Win Type - Total 2 Types 1/0/1/0/0/0/0/0/0/0 Lore% 28 Gallery% 57 Achievement% 52 Wizard Run 0 Options --------- Layout 0 ASCII 0 Keyboard 0 Movement Mouse Keybinds 0 Fullscreen 2 Font 36/Smallcaps Map View 76x50 Zoom Use 0% Tactical HUD 1 Map Filters NONE Filters NONE Steam 1 RUN: ede4bab8-9ae9-414f-9d36-a5fe6d8cc39b